bitfinex-derivatives/quotes_BTCF0:USTF0_20210706
["timestamp","ask_amount","ask_price","bid_price","bid_amount"]
[1625605512968,0.34551843,33862.0,33859.0,6.43053463]
[1625605513083,0.34551843,33862.0,33859.0,6.43465066]
[1625605513207,0.34551523,33863.0,33861.0,4.86613256]
[1625605513325,0.34551523,33863.0,33861.0,5.15256256]
[1625605513503,0.86351459,33864.0,33863.0,5.0622]
[1625605513623,0.34532808,33864.0,33863.0,9.92584549]
[1625605513984,0.34532808,33864.0,33863.0,9.92996141]
[1625605514228,0.34532808,33864.0,33863.0,10.41111229]
[1625605515549,0.8629285,33865.0,33863.0,9.02149929]
[1625605515789,0.51786657,33865.0,33864.0,3.47239777]
[1625605516030,0.51786657,33865.0,33864.0,3.47651344]
[1625605516328,1.20824867,33866.0,33864.0,3.47651344]
[1625605516509,1.44985979,33868.0,33865.0,4.86104851]
[1625605516747,1.44985979,33868.0,33867.0,2.77762222]
[1625605516869,1.44985979,33868.0,33867.0,3.47202777]
[1625605517050,0.75886483,33868.0,33867.0,3.47202777]
[1625605517170,0.75886483,33868.0,33867.0,3.47614308]
[1625605517470,0.51828939,33868.0,33867.0,2.26093336]
[1625605517591,0.518036,33869.0,33867.0,2.26093336]
[1625605517710,0.518036,33869.0,33868.0,2.25523289]
[1625605517830,0.518036,33869.0,33868.0,2.47880289]
[1625605518011,0.51797013,33870.0,33868.0,3.69310826]
[1625605518190,0.51797013,33870.0,33869.0,1.9598663]
[1625605518313,0.51797013,33870.0,33869.0,2.44101718]
[1625605518433,0.69114654,33872.0,33869.0,4.15529914]
[1625605518733,0.69172519,33875.0,33871.0,2.94881209]
[1625605519031,0.69172519,33875.0,33874.0,0.69378435]
[1625605519150,0.93236668,33876.0,33874.0,1.73444064]
[1625605519270,0.93236668,33876.0,33875.0,4.484]
[1625605519391,0.24057544,33876.0,33875.0,4.81758]
[1625605520175,0.24057544,33876.0,33875.0,5.51067559]
[1625605520293,0.69102666,33878.0,33875.0,5.99182647]
[1625605520534,0.69136408,33879.0,33876.0,0.69309275]
[1625605520775,0.93215927,33880.0,33877.0,0.69302171]
[1625605521015,0.93215927,33880.0,33878.0,0.69302188]
[1625605521255,0.24057544,33880.0,33877.0,0.69301581]
[1625605521498,0.24057544,33880.0,33878.0,0.69211152]
[1625605522275,0.24057544,33880.0,33879.0,0.24057544]
[1625605527986,0.05459266,33876.0,33875.0,5.53930632]
[1625605528289,0.2951681,33876.0,33875.0,5.53930632]
[1625605528532,0.5897581,33876.0,33873.0,0.69003827]
[1625605528891,0.5897581,33876.0,33870.0,0.68972889]
[1625605529009,4.3712581,33876.0,33870.0,0.68972889]
[1625605529132,4.3712581,33876.0,33869.0,0.68966275]
[1625605529370,0.057,33875.0,33869.0,0.68966275]
[1625605529612,0.057,33875.0,33865.0,0.68998063]
[1625605529851,0.68940609,33874.0,33861.0,0.69003315]
[1625605529970,0.057,33873.0,33861.0,0.69003315]
[1625605530091,4.4606,33867.0,33860.0,0.68992703]
[1625605530210,0.33526,33867.0,33860.0,0.68992703]
[1625605530392,0.72172632,33861.0,33860.0,0.68992703]
[1625605530870,0.72172632,33861.0,33860.0,5.33682703]
[1625605531113,0.72172632,33861.0,33860.0,4.6469]
[1625605532558,0.72172632,33861.0,33860.0,5.33685763]
[1625605533157,0.72172632,33861.0,33860.0,4.6469]
[1625605535981,0.77872632,33861.0,33860.0,4.6469]
[1625605536401,1.01930176,33861.0,33860.0,4.6469]
[1625605537125,1.01930176,33861.0,33856.0,0.93052783]
[1625605537244,1.01930176,33861.0,33856.0,0.24057544]
[1625605537545,1.01930176,33861.0,33857.0,0.00411633]
[1625605538626,0.96230176,33861.0,33857.0,0.00411633]
[1625605539046,0.38056,33860.0,33857.0,0.00411633]
[1625605539709,0.32356,33860.0,33857.0,0.00411633]
[1625605540969,1.01930176,33861.0,33857.0,0.00411633]
[1625605541091,0.96230176,33861.0,33857.0,0.00411633]
[1625605541271,0.96230176,33861.0,33857.0,0.21539633]
[1625605541392,0.96230176,33861.0,33858.0,0.68846555]
[1625605541631,0.96230176,33861.0,33859.0,0.68801893]
[1625605541877,0.96230176,33861.0,33859.0,0.00411934]
[1625605542056,0.96230176,33861.0,33860.0,0.00411934]
[1625605542357,0.96230176,33861.0,33860.0,0.24057544]
[1625605542597,0.96230176,33861.0,33860.0,0.93191046]
[1625605542837,0.96230176,33861.0,33860.0,3.16372017]
[1625605544701,0.96230176,33861.0,33860.0,1.96197648]
[1625605545000,0.96230176,33861.0,33860.0,3.16195346]
[1625605545242,0.96230176,33861.0,33860.0,1.96197648]
[1625605547169,1.01930176,33861.0,33860.0,0.69133502]
[1625605547409,1.01930176,33861.0,33860.0,0.00411916]
[1625605547528,1.28141176,33861.0,33860.0,0.00411916]
[1625605547826,1.28141176,33861.0,33859.0,0.00411987]
[1625605548066,1.28141176,33861.0,33860.0,0.00411998]
[1625605548428,1.28141176,33861.0,33858.0,0.0041201]
[1625605548667,1.28141176,33861.0,33860.0,0.0041201]
[1625605548969,1.28141176,33861.0,33859.0,0.00412017]
[1625605549269,1.28141176,33861.0,33860.0,0.00412017]
[1625605549748,1.28141176,33861.0,33857.0,0.00412019]
[1625605549928,1.28141176,33861.0,33860.0,0.00412017]
[1625605550227,1.28141176,33861.0,33857.0,0.00412022]
[1625605551128,1.28141176,33861.0,33857.0,0.69009149]
[1625605551550,1.28141176,33861.0,33858.0,0.00412005]
[1625605552087,1.22441176,33861.0,33858.0,0.00412005]
[1625605552868,1.28141176,33861.0,33858.0,0.00412005]
[1625605554135,1.28141176,33861.0,33860.0,4.4024]
[1625605554492,1.22441176,33861.0,33860.0,4.40651995]
[1625605555757,1.28141176,33861.0,33860.0,4.40651995]
[1625605558940,1.28141176,33861.0,33860.0,0.00411995]
[1625605559243,1.28141176,33861.0,33859.0,0.00412025]
[1625605559482,1.28141176,33861.0,33858.0,0.00411599]
[1625605559722,1.28141176,33861.0,33858.0,0.69078291]
[1625605560023,1.28141176,33861.0,33859.0,0.0041161]
[1625605560383,1.28141176,33861.0,33858.0,0.00411624]
[1625605560564,1.28141176,33861.0,33860.0,0.00411629]
[1625605560927,1.28141176,33861.0,33857.0,0.00411636]
[1625605561166,4.3006,33858.0,33855.0,0.6871549]
[1625605561287,0.057,33857.0,33855.0,0.6871549]
[1625605561649,0.057,33857.0,33856.0,0.00411643]
[1625605562310,0.29123038,33856.0,33855.0,0.6871549]
[1625605562430,0.34823038,33856.0,33855.0,0.6871549]
[1625605562550,0.82938126,33856.0,33855.0,0.6871549]
[1625605562731,0.82938126,33856.0,33855.0,0.69126702]
[1625605562971,0.82938126,33856.0,33855.0,5.19806702]
[1625605563332,0.82938126,33856.0,33855.0,6.23055963]
[1625605563572,0.77238126,33856.0,33855.0,6.23055963]
[1625605563813,0.77238126,33856.0,33855.0,7.43478431]
[1625605564656,0.77238126,33856.0,33855.0,8.81956917]
[1625605567060,0.77238126,33856.0,33855.0,10.37261634]
[1625605568079,0.77238126,33856.0,33855.0,8.81956917]
[1625605568560,0.77238126,33856.0,33855.0,10.37445885]
[1625605572470,0.82938126,33856.0,33855.0,10.3657359]
[1625605572711,0.82938126,33856.0,33855.0,8.81084622]
[1625605573493,0.82938126,33856.0,33855.0,8.81956954]
[1625605574094,0.82938126,33856.0,33855.0,10.37772248]
[1625605575181,0.82938126,33856.0,33855.0,8.81956954]
[1625605575596,0.77238126,33856.0,33855.0,8.81956954]
[1625605575839,0.82938126,33856.0,33855.0,8.81956954]
[1625605576197,0.82938126,33856.0,33855.0,8.81957324]
[1625605581966,0.77238126,33856.0,33855.0,8.81957324]
[1625605582087,0.77238126,33856.0,33855.0,9.03637324]
[1625605582208,0.77238126,33856.0,33855.0,10.58998739]
[1625605582932,0.77238126,33856.0,33855.0,10.83056283]
[1625605584917,0.53180582,33856.0,33855.0,10.83056283]
[1625605586597,0.53180582,33856.0,33855.0,12.5582058]
[1625605590085,0.53180582,33856.0,33855.0,12.31763036]
[1625605590986,0.53180582,33856.0,33855.0,12.5582058]
[1625605591469,0.53180582,33856.0,33855.0,13.0582058]
[1625605593516,0.53180582,33856.0,33855.0,12.5582058]
[1625605604277,0.53180582,33856.0,33855.0,13.0582058]
[1625605604876,0.53180582,33856.0,33855.0,15.14455444]
[1625605604995,0.53180582,33856.0,33855.0,14.64455444]
[1625605605176,0.53180582,33856.0,33855.0,14.65698074]
[1625605605355,0.53180582,33856.0,33855.0,14.64455444]
[1625605605478,0.53180582,33856.0,33855.0,12.5582058]
[1625605606317,0.53180582,33856.0,33855.0,13.0582058]
[1625605606676,0.53180582,33856.0,33855.0,12.5582058]
[1625605608241,0.53180582,33856.0,33855.0,13.07997082]
[1625605609921,0.29123038,33856.0,33855.0,12.83939538]
[1625605610948,0.29123038,33856.0,33855.0,8.01769626]
[1625605611186,0.29123038,33856.0,33855.0,13.36557802]
[1625605611727,0.29123038,33856.0,33855.0,13.86557802]
[1625605611907,0.29123038,33856.0,33855.0,13.36557802]
[1625605617979,0.29123038,33856.0,33855.0,12.88442714]
[1625605619482,0.29123038,33856.0,33855.0,13.36557802]
[1625605623695,0.53180582,33856.0,33855.0,13.36557802]
[1625605626578,0.58880582,33856.0,33855.0,13.36557802]
[1625605646547,0.90166582,33856.0,33855.0,8.16082714]
[1625605647026,1.25023316,33856.0,33855.0,8.16082714]
[1625605647206,1.25023316,33856.0,33855.0,8.15210382]
[1625605647327,3.16521408,33856.0,33855.0,6.42446085]
[1625605647450,7.87561408,33856.0,33855.0,6.42446085]
[1625605647990,8.11618952,33856.0,33855.0,6.42446085]
[1625605651054,8.11618952,33856.0,33855.0,4.8708467]
[1625605653339,3.40578952,33856.0,33855.0,4.8708467]
[1625605653938,3.09292952,33856.0,33855.0,5.0903167]
[1625605654059,2.04828189,33856.0,33855.0,6.65724673]
[1625605654238,2.04828189,33856.0,33855.0,10.66704673]
[1625605654358,1.35179211,33856.0,33855.0,10.66704673]
[1625605654600,1.17705891,33856.0,33855.0,10.66704673]
[1625605654840,0.82938126,33856.0,33855.0,10.66704673]
[1625605655921,0.82938126,33856.0,33855.0,10.90762217]
[1625605660915,0.34823038,33856.0,33855.0,10.66704673]
[1625605661938,0.58880582,33856.0,33855.0,10.90762217]
[1625605670598,0.58880582,33856.0,33855.0,10.66704673]
[1625605672038,0.58880582,33856.0,33855.0,10.90762217]
[1625605673666,0.53180582,33856.0,33855.0,10.90762217]
[1625605673909,0.58880582,33856.0,33855.0,10.90762217]
[1625605676554,0.84178582,33856.0,33855.0,10.66704673]
[1625605678358,0.78478582,33856.0,33855.0,10.66704673]
[1625605678476,0.84178582,33856.0,33855.0,10.66704673]
[1625605680337,0.58880582,33856.0,33855.0,10.66704673]
[1625605680997,0.58880582,33856.0,33855.0,10.67577004]
[1625605683102,0.58880582,33856.0,33855.0,12.41643047]
[1625605683344,0.58880582,33856.0,33855.0,10.67577004]
[1625605683765,0.58880582,33856.0,33855.0,12.41653605]
[1625605684004,0.58880582,33856.0,33855.0,10.67577004]
[1625605684724,0.58880582,33856.0,33855.0,12.41658973]
[1625605684965,0.58880582,33856.0,33855.0,10.67577004]
[1625605685207,0.58880582,33856.0,33855.0,12.41664071]
[1625605689233,0.58880582,33856.0,33855.0,10.67577004]
[1625605690259,0.58880582,33856.0,33855.0,12.41699294]
[1625605690559,0.58880582,33856.0,33855.0,10.67577004]
[1625605690739,0.58880582,33856.0,33855.0,12.41704016]
[1625605691218,0.58880582,33856.0,33855.0,10.67577004]
[1625605691520,0.58880582,33856.0,33855.0,12.41705801]
[1625605691759,0.58880582,33856.0,33855.0,10.67577004]
[1625605692421,0.58880582,33856.0,33855.0,12.41710418]
[1625605699216,0.53180582,33856.0,33855.0,12.41710418]
[1625605699517,0.29123038,33856.0,33855.0,12.91710418]
[1625605699634,0.29123038,33856.0,33855.0,15.01945419]
[1625605700174,0.29123038,33856.0,33855.0,15.50060507]
[1625605700295,0.84941931,33865.0,33855.0,15.50060507]
[1625605700415,0.2610012,33865.0,33864.0,4.85425]
[1625605700655,0.2613575,33870.0,33864.0,13.03555489]
[1625605700836,1.30591532,33872.0,33869.0,7.13415446]
[1625605700955,0.60971604,33872.0,33869.0,8.17817706]
[1625605701075,0.08720175,33872.0,33871.0,0.69586096]
[1625605701197,0.08720175,33872.0,33871.0,6.68940388]
[1625605701377,0.08720175,33872.0,33871.0,6.69345112]
[1625605701616,0.26142551,33873.0,33871.0,6.69345112]
[1625605701737,0.26142551,33873.0,33871.0,11.92165112]
[1625605701917,0.26142551,33873.0,33872.0,6.43925414]
[1625605702159,1.44912835,33874.0,33872.0,6.43925414]
[1625605702276,1.44912835,33874.0,33872.0,6.92040502]
[1625605702458,1.18797544,33874.0,33873.0,6.43155479]
[1625605702577,0.24057544,33874.0,33873.0,6.43155479]
[1625605702696,0.50172933,33874.0,33873.0,6.43155479]
[1625605702999,0.24057544,33874.0,33873.0,6.43155479]
[1625605706968,0.24057544,33874.0,33873.0,4.86810698]
[1625605707209,0.24057544,33874.0,33873.0,6.42969645]
[1625605708048,0.3521681,33876.0,33873.0,4.86810698]
[1625605708228,0.3521681,33876.0,33875.0,4.85628105]
[1625605708408,0.3521681,33876.0,33875.0,9.81268105]
[1625605708529,0.3521681,33876.0,33875.0,9.81672597]
[1625605710935,0.3521681,33876.0,33875.0,10.29787685]
[1625605714302,0.3521681,33876.0,33875.0,8.91036798]
[1625605716828,0.2951681,33876.0,33875.0,8.91036798]
[1625605717068,0.2951681,33876.0,33875.0,10.29587641]
[1625605723319,0.2951681,33876.0,33875.0,10.05530097]
[1625605725064,0.2951681,33876.0,33875.0,10.05125605]
[1625605725422,0.2951681,33876.0,33875.0,10.05530533]
[1625605725543,0.3521681,33876.0,33875.0,10.05530533]
[1625605725665,0.3521681,33876.0,33875.0,8.6697969]
[1625605726626,0.2951681,33876.0,33875.0,8.6697969]
[1625605727346,0.2951681,33876.0,33875.0,10.05415131]
[1625605728074,0.2951681,33876.0,33875.0,8.6697969]
[1625605729330,0.2951681,33876.0,33875.0,10.05413068]
[1625605732820,0.2951681,33876.0,33875.0,10.06284933]
[1625605735824,0.2951681,33876.0,33875.0,11.61993055]
[1625605735945,0.2951681,33876.0,33875.0,12.11993055]
[1625605736184,0.24057544,33882.0,33875.0,12.11993055]
[1625605736364,0.24057544,33882.0,33881.0,3.46013617]
[1625605736544,0.24057544,33882.0,33881.0,3.75539617]
[1625605736845,0.24057544,33882.0,33881.0,3.75944397]
[1625605737205,0.24057544,33882.0,33881.0,4.00001941]
[1625605737685,0.24057544,33882.0,33881.0,3.704897]
[1625605741474,1.26910326,33890.0,33881.0,3.704897]
[1625605741595,0.08588507,33888.0,33882.0,0.5]
[1625605741715,0.08588507,33888.0,33883.0,0.057]
[1625605741835,0.51566997,33898.0,33887.0,4.15199983]
[1625605741957,0.51566997,33898.0,33888.0,0.057]
[1625605742136,0.9563,33901.0,33897.0,1.72807966]
[1625605742254,0.9563,33901.0,33897.0,2.05625966]
[1625605742376,0.9563,33901.0,33898.0,0.00404637]
[1625605742736,3.5746,33907.0,33898.0,3.87234637]
[1625605742916,0.51677366,33910.0,33900.0,1.72798397]
[1625605743040,0.51677366,33910.0,33901.0,0.057]
[1625605743219,0.51677366,33910.0,33909.0,0.72172632]
[1625605743343,0.51677619,33911.0,33909.0,5.07712632]
[1625605743699,0.51677619,33911.0,33910.0,0.00404599]
[1625605743878,0.51682704,33912.0,33910.0,0.00404599]
[1625605744299,1.20570013,33915.0,33910.0,0.00404599]
[1625605744300,0.5173933,33915.0,33910.0,0.00404599]
[1625605744542,0.24057544,33916.0,33914.0,3.7064]
[1625605744662,0.24057544,33916.0,33914.0,3.6561519]
[1625605745021,0.24057544,33916.0,33915.0,0.00404545]
[1625605745263,0.51685194,33918.0,33915.0,0.48115088]
[1625605745505,0.51719722,33919.0,33915.0,0.53815088]
[1625605745925,0.51726744,33920.0,33915.0,0.53815088]
[1625605746105,1.44384448,33921.0,33915.0,0.53815088]
[1625605747248,1.44384448,33921.0,33920.0,0.24057544]
[1625605747368,0.51654448,33921.0,33920.0,0.24057544]
[1625605747788,0.19158387,33924.0,33920.0,0.24057544]
[1625605747909,0.19158387,33924.0,33923.0,3.6327]
[1625605748033,0.24057544,33926.0,33923.0,3.97022]
[1625605749113,4.9935,33927.0,33923.0,3.97022]
[1625605749232,4.9935,33927.0,33926.0,0.48115088]
[1625605751697,1.37611136,33931.0,33926.0,0.48115088]
[1625605752117,1.37526805,33935.0,33926.0,0.18627091]
[1625605752237,1.37526805,33935.0,33934.0,3.5456]
[1625605752417,1.616132,33936.0,33934.0,3.75749]
[1625605753256,1.616132,33936.0,33934.0,3.99806544]
[1625605753377,0.24057544,33936.0,33934.0,3.99806544]
[1625605759327,0.24057544,33936.0,33934.0,3.9438817]
[1625605765943,0.24057544,33936.0,33934.0,3.7319917]
[1625605766303,0.24057544,33936.0,33934.0,3.43723252]
[1625605768466,0.24057544,33936.0,33935.0,0.00404672]
[1625605773160,0.24057544,33936.0,33934.0,3.14654708]
[1625605773461,0.24057544,33936.0,33935.0,0.24057544]
[1625605774544,0.24057544,33936.0,33927.0,0.057]
[1625605774663,0.52255544,33936.0,33927.0,0.057]
[1625605774784,0.52255544,33936.0,33928.0,0.00404144]
[1625605775325,3.8151,33934.0,33928.0,0.00404144]
[1625605775447,0.48115088,33929.0,33928.0,0.00404144]
[1625605775986,0.82582088,33929.0,33928.0,0.00404144]
[1625605778511,0.48115088,33929.0,33928.0,0.00404144]
[1625605780374,0.71250088,33929.0,33928.0,0.00404144]
[1625605780733,0.71250088,33929.0,33926.0,0.00404415]
[1625605780974,0.71250088,33929.0,33928.0,0.00404412]
[1625605781213,0.71250088,33929.0,33927.0,0.00404415]
[1625605781454,0.95307632,33929.0,33927.0,0.01275162]
[1625605781876,0.72172632,33929.0,33927.0,0.01275162]
[1625605782294,0.72172632,33929.0,33926.0,0.0127513]
[1625605782594,0.72172632,33929.0,33928.0,0.00404399]
[1625605782896,0.72172632,33929.0,33927.0,0.01275141]
[1625605783074,0.72172632,33929.0,33928.0,0.00404397]
[1625605783314,0.72172632,33929.0,33926.0,0.01275135]
[1625605784098,0.72172632,33929.0,33926.0,0.00404399]
[1625605784339,0.72172632,33929.0,33926.0,0.01275149]
[1625605784639,0.72172632,33929.0,33926.0,0.00404399]
[1625605785179,0.72172632,33929.0,33926.0,0.01275141]
[1625605787467,0.72172632,33929.0,33927.0,0.24057544]
[1625605787645,0.72172632,33929.0,33927.0,0.49641544]
[1625605787887,0.72172632,33929.0,33928.0,0.00404382]
[1625605788247,0.72172632,33929.0,33928.0,0.01275091]
[1625605788548,0.72172632,33929.0,33928.0,0.00404382]
[1625605789569,0.72172632,33929.0,33921.0,0.16811014]
[1625605789690,1.07897632,33929.0,33909.0,1.71600069]
[1625605789812,1.07897632,33929.0,33919.0,1.02974224]
[1625605790108,1.07897632,33929.0,33921.0,0.01274698]
[1625605790290,4.7918,33922.0,33920.0,0.01274816]
[1625605790468,0.057,33921.0,33920.0,0.01274816]
[1625605790588,0.057,33921.0,33916.0,0.01274875]
[1625605790827,0.057,33921.0,33915.0,0.0127489]
[1625605791369,0.057,33921.0,33914.0,0.0127489]
[1625605791549,0.96230176,33915.0,33914.0,0.0127489]
[1625605791670,1.21919176,33915.0,33914.0,0.0127489]
[1625605792213,1.21919176,33915.0,33913.0,0.01274932]
[1625605792334,5.22469176,33915.0,33913.0,1.04488442]
[1625605792449,5.22469176,33915.0,33914.0,0.01274941]
[1625605793294,5.22469176,33915.0,33914.0,0.00404026]
[1625605793475,5.28169176,33915.0,33914.0,0.00404026]
[1625605793773,5.28169176,33915.0,33913.0,0.00404047]
[1625605794315,5.28169176,33915.0,33913.0,1.03761794]
[1625605794914,5.28169176,33915.0,33914.0,0.00404054]
[1625605795036,5.28169176,33915.0,33914.0,1.03912974]
[1625605795637,5.28169176,33915.0,33914.0,0.00404054]
[1625605796117,5.28169176,33915.0,33913.0,0.00404085]
[1625605796963,5.28169176,33915.0,33912.0,0.00404107]
[1625605797204,5.28169176,33915.0,33914.0,0.00404102]
[1625605797444,5.28169176,33915.0,33913.0,1.03707582]
[1625605797744,5.28169176,33915.0,33914.0,0.69542381]
[1625605798225,5.28169176,33915.0,33914.0,0.00404102]
[1625605798712,5.28169176,33915.0,33914.0,0.69549611]
[1625605799195,5.28169176,33915.0,33914.0,1.7352157]
[1625605800450,5.97182135,33915.0,33914.0,1.7352157]
[1625605800691,5.97182135,33915.0,33914.0,0.69549611]
[1625605801111,7.00649038,33915.0,33914.0,0.69549611]
[1625605801651,7.00649038,33915.0,33914.0,0.00404102]
[1625605801771,7.00649038,33915.0,33913.0,0.31129371]
[1625605802132,1.03551402,33914.0,33913.0,1.04069108]
[1625605802311,1.09251402,33914.0,33913.0,1.04069108]
[1625605802611,1.09251402,33914.0,33913.0,1.0447252]
[1625605803271,1.09251402,33914.0,33913.0,0.00403412]
[1625605804660,2.30028122,33914.0,33911.0,1.04050002]
[1625605805138,2.30028122,33914.0,33910.0,1.04053039]
[1625605805139,1.03498,33912.0,33910.0,1.04053039]
[1625605805257,0.057,33911.0,33910.0,1.04053039]
[1625605805379,1.09195871,33911.0,33910.0,0.04033039]
[1625605805620,2.29882438,33911.0,33906.0,1.21400696]
[1625605805742,2.53939982,33911.0,33906.0,1.21400696]
[1625605805862,1.20625281,33909.0,33904.0,1.21418262]
[1625605805982,5.2996,33905.0,33904.0,1.21418262]
[1625605806161,5.3566,33905.0,33903.0,1.21427984]
[1625605806281,5.3566,33905.0,33904.0,0.00403539]
[1625605806525,5.3566,33905.0,33902.0,1.21333791]
[1625605806643,5.3566,33905.0,33901.0,1.21336206]
[1625605806821,5.3566,33905.0,33903.0,0.00403562]
[1625605807061,5.3566,33905.0,33901.0,1.21336206]
[1625605807723,0.72172632,33902.0,33901.0,1.21336206]
[1625605807842,0.77872632,33902.0,33901.0,1.21336206]
[1625605808083,0.77872632,33902.0,33900.0,1.21344184]
[1625605809105,0.77872632,33902.0,33899.0,1.21250036]
[1625605809764,0.58043544,33900.0,33899.0,1.21250036]
[1625605809885,0.63743544,33900.0,33899.0,1.21250036]
[1625605810307,0.63743544,33900.0,33898.0,1.21164728]
[1625605810544,0.63743544,33900.0,33897.0,1.2116497]
[1625605810964,3.6437,33898.0,33897.0,1.2116497]
[1625605811085,3.7007,33898.0,33897.0,1.2116497]
[1625605811806,3.94127544,33898.0,33897.0,1.2116497]
[1625605812168,3.94127544,33898.0,33896.0,1.21078481]
[1625605813730,0.24057544,33897.0,33896.0,1.21078481]
[1625605813854,0.29757544,33897.0,33896.0,1.21078481]
[1625605813971,0.29757544,33897.0,33895.0,1.21022327]
[1625605814212,0.29757544,33897.0,33894.0,1.21008949]
[1625605815171,0.29757544,33897.0,33892.0,1.20946614]
[1625605815475,0.29757544,33897.0,33891.0,1.20949927]
[1625605815833,0.70511088,33892.0,33891.0,5.90169927]
[1625605815953,0.76211088,33892.0,33891.0,5.90169927]
[1625605816433,0.76211088,33892.0,33891.0,4.6922]
[1625605816792,0.70511088,33892.0,33891.0,4.6922]
[1625605816912,0.48115088,33892.0,33891.0,4.6922]
[1625605817335,0.48115088,33892.0,33891.0,5.90083406]
[1625605819437,0.48115088,33892.0,33891.0,5.9048726]
[1625605820098,0.48115088,33892.0,33891.0,5.90083406]
[1625605820219,0.48115088,33892.0,33891.0,4.6922]
[1625605821060,0.53815088,33892.0,33891.0,4.6922]
[1625605821480,0.53815088,33892.0,33891.0,4.69623481]
[1625605824664,0.53815088,33892.0,33891.0,4.98744481]
[1625605827793,0.48115088,33892.0,33891.0,4.98744481]
[1625605829294,0.53815088,33892.0,33891.0,4.98744481]
[1625605837775,0.53815088,33892.0,33891.0,4.69623481]
[1625605840179,0.53815088,33892.0,33891.0,0.00403481]
[1625605840300,0.76403088,33892.0,33891.0,0.00403481]
[1625605840484,0.76403088,33892.0,33889.0,0.00403352]
[1625605840720,4.3205,33890.0,33884.0,1.01504415]
[1625605840841,0.057,33889.0,33887.0,0.51727962]
[1625605841086,0.557,33889.0,33887.0,0.51727962]
[1625605841263,0.557,33889.0,33879.0,0.46689224]
[1625605841383,0.557,33889.0,33872.0,1.38007056]
[1625605841563,0.557,33889.0,33871.0,1.38018894]
[1625605841808,0.557,33889.0,33868.0,1.38021018]
[1625605841924,0.6459,33889.0,33868.0,1.38021018]
[1625605842104,3.5634,33873.0,33872.0,0.00402735]
[1625605842225,3.92947,33873.0,33872.0,0.00402735]
[1625605842344,4.89177176,33873.0,33869.0,0.00402325]
[1625605842644,4.89177176,33873.0,33872.0,0.00402329]
[1625605842885,4.89177176,33873.0,33870.0,0.00402345]
[1625605843185,4.89177176,33873.0,33872.0,0.00402345]
[1625605843483,4.89177176,33873.0,33871.0,0.00402358]
[1625605843606,4.89177176,33873.0,33872.0,0.0040213]
[1625605843904,4.89177176,33873.0,33868.0,0.00402109]
[1625605844385,0.24057544,33869.0,33868.0,0.00402109]
[1625605844507,0.29757544,33869.0,33868.0,0.00402109]
[1625605848119,0.29757544,33869.0,33867.0,0.9893]
[1625605848359,0.24057544,33868.0,33867.0,0.9893]
[1625605848480,0.29757544,33868.0,33867.0,0.9893]
[1625605848720,0.29757544,33868.0,33867.0,0.99333595]
[1625605849264,0.29757544,33868.0,33867.0,0.9893]
[1625605850467,0.29757544,33868.0,33867.0,0.69401424]
[1625605855819,0.29757544,33868.0,33867.0,0.93461424]
[1625605855938,0.24057544,33868.0,33867.0,0.93461424]
[1625605856486,0.24057544,33868.0,33867.0,6.07811424]
[1625605857503,0.24057544,33868.0,33867.0,5.78282848]
[1625605857804,0.24057544,33868.0,33867.0,5.3841]
[1625605858824,0.24057544,33868.0,33867.0,5.38814901]
[1625605860933,0.24057544,33868.0,33867.0,6.5953514]
[1625605861893,0.24057544,33868.0,33867.0,7.28517139]
[1625605862133,0.24057544,33868.0,33867.0,6.077969]
[1625605863814,0.24057544,33868.0,33867.0,7.2854977]
[1625605864053,0.24057544,33868.0,33867.0,6.077969]
[1625605864294,0.24057544,33868.0,33867.0,7.28597713]
[1625605864714,0.24057544,33868.0,33867.0,6.99069137]
[1625605866577,0.24057544,33868.0,33867.0,1.90187713]
[1625605866938,0.29757544,33868.0,33867.0,0.693869]
[1625605868080,0.29757544,33868.0,33867.0,0.00404901]
[1625605868260,0.29757544,33868.0,33867.0,0.69452556]
[1625605868739,0.29757544,33868.0,33867.0,0.00404901]
[1625605869099,5.37637544,33868.0,33867.0,0.00404901]
[1625605869821,5.37637544,33868.0,33867.0,0.69446918]
[1625605870303,5.37637544,33868.0,33867.0,0.34929497]
[1625605871207,5.37637544,33868.0,33867.0,0.00404901]
[1625605871568,5.37637544,33868.0,33866.0,0.05399623]
[1625605872592,0.24057544,33867.0,33866.0,0.05399623]
[1625605872773,0.29757544,33867.0,33866.0,0.05399623]
[1625605873072,0.29757544,33867.0,33866.0,0.05803345]
[1625605875114,0.29757544,33867.0,33866.0,0.00403722]
[1625605875474,0.29757544,33867.0,33865.0,0.00403749]
[1625605875774,0.29757544,33867.0,33866.0,0.00403765]
[1625605876377,0.29757544,33867.0,33863.0,0.0040378]
[1625605876555,0.29757544,33867.0,33866.0,0.0040378]
[1625605876855,0.29757544,33867.0,33864.0,0.00403777]
[1625605877039,0.29757544,33867.0,33866.0,0.00403783]
[1625605877336,0.29757544,33867.0,33862.0,0.0040377]
[1625605878358,0.29528576,33863.0,33862.0,0.0040377]
[1625605878477,0.58781576,33863.0,33862.0,0.0040377]
[1625605878718,1.06896664,33863.0,33862.0,0.0040377]
[1625605881902,1.06896664,33863.0,33862.0,0.69462785]
[1625605882145,1.06896664,33863.0,33862.0,0.0040377]
[1625605887494,1.01196664,33863.0,33862.0,0.0040377]
[1625605887614,1.01196664,33863.0,33862.0,0.69490475]
[1625605888333,1.01196664,33863.0,33862.0,1.73150779]
[1625605888453,4.88976664,33863.0,33862.0,1.73150779]
[1625605888574,4.88976664,33863.0,33862.0,0.69490475]
[1625605888815,4.88976664,33863.0,33862.0,1.73149967]
[1625605891401,1.01196664,33863.0,33862.0,1.73149967]
[1625605891521,0.77643664,33863.0,33862.0,3.23488834]
[1625605892064,0.77643664,33863.0,33862.0,4.6175596]
[1625605892661,0.77643664,33863.0,33862.0,9.1394596]
[1625605894166,0.77643664,33863.0,33862.0,10.69721038]
[1625605901385,0.77643664,33863.0,33862.0,12.43684012]
[1625605901866,0.77643664,33863.0,33862.0,10.69721038]
[1625605902349,0.77643664,33863.0,33862.0,12.43687267]
[1625605903847,0.77643664,33863.0,33862.0,12.44559429]
[1625605904508,0.77643664,33863.0,33862.0,12.43687267]
[1625605906070,0.77643664,33863.0,33862.0,10.69721038]
[1625605906852,0.77643664,33863.0,33862.0,12.43700081]
[1625605907213,0.77643664,33863.0,33862.0,10.69721038]
[1625605907452,0.77643664,33863.0,33862.0,12.43699444]
[1625605911002,0.77643664,33863.0,33862.0,12.44571595]
[1625605912143,0.77643664,33863.0,33862.0,10.69721038]
[1625605915985,0.77643664,33863.0,33862.0,10.70593228]
[1625605929391,0.77643664,33863.0,33862.0,10.69721038]
[1625605929691,0.77643664,33863.0,33862.0,10.70593253]
[1625605930655,0.77643664,33863.0,33862.0,10.69721038]
[1625605931254,0.77643664,33863.0,33862.0,11.21962181]
[1625605931497,0.77643664,33863.0,33862.0,11.22834369]
[1625605932642,0.77643664,33863.0,33862.0,6.70644369]
[1625605933964,0.77643664,33863.0,33862.0,11.98834369]
[1625605934266,0.77643664,33863.0,33862.0,12.07784369]
[1625605934685,0.77643664,33863.0,33862.0,7.14592036]
[1625605934928,0.77643664,33863.0,33862.0,12.02140368]